[Event "2nd Summer Festival Belgrade GM 2019"]
[Site "Belgrade"]
[Date "2019.06.30"]
[Round "10.1"]
[White "Yu, Jennifer"]
[Black "Nandhidhaa, P V"]
[Result "1-0"]
[ECO "E53"]
[WhiteElo "2369"]
[BlackElo "2259"]
[Annotator "ChessBase"]
[PlyCount "113"]
[EventDate "2019.06.25"]
[EventType "tourn"]
[EventCountry "SRB"]
[SourceTitle "playchess.com"]
[Source "ChessBase"]
[SourceQuality "1"]
[TimeControl "5400+30"]

1. Nf3 {[%emt 0:00:00]} d5 {[%emt 0:00:00]} 2. d4 {[%emt 0:00:00]} Nf6 {[%emt 0:00:00]} 3. c4 {[%emt 0:00:00]} e6 {[%emt 0:00:00]} 4. Nc3 {[%emt 0:00:00]} Bb4 {[%emt 0:00:00]} 5. e3 {[%emt 0:02:27]} O-O {[%emt 0:00:05]} 6. Bd3 {[%emt 0:00:33]} dxc4 {[%emt 0:00:19]} 7. Bxc4 {[%emt 0:00:10]} c5 {[%emt 0:00:02]} 8. a3 {[%emt 0:06:40]} Bxc3+ {[%emt 0:00:07]} 9. bxc3 {[%emt 0:00:06]} Qc7 {[%emt 0:00:06]} 10. Be2 {[%emt 0:07:33]} b6 {[%emt 0:00:30]} 11. O-O {[%emt 0:06:10]} Bb7 {[%emt 0:00:43]} 12. c4 {[%emt 0:03:46]} cxd4 {[%emt 0:11:52]} 13. exd4 {[%emt 0:01:39]} Ng4 {[%emt 0:01:31]} 14. g3 {[%emt 0:02:33]} Qc6 {[%emt 0:02:55]} 15. d5 {[%emt 0:06:11]} Qc8 {[%emt 0:21:40]} 16. Bb2 {[%emt 0:16:31]} Nd7 {[%emt 0:02:55]} 17. Ng5 {[%emt 0:20:10]} Ngf6 {[%emt 0:08:37]} 18. dxe6 {[%emt 0:02:25]} fxe6 {[%emt 0:00:34]} 19. Bg4 {[%emt 0:00:11]} Nc5 {[%emt 0:16:43]} 20. Qc2 {[%emt 0:05:10]} Nfe4 {[%emt 0:07:43]} 21. Nxe4 Nxe4 {[%emt 0:03:10]} 22. Rae1 {[%emt 0:12:10]} Ng5 {[%emt 0:06:17]} 23. Qc3 {[%emt 0:00:03]} Qc7 {[%emt 0:09:11]} 24. f3 {[%emt 0:00:55]} Rae8 {[%emt 0:00:52]} 25. Kg2 {[%emt 0:02:22]} e5 {[%emt 0:04:01]} 26. Rxe5 {[%emt 0:01:14]} Rxe5 {[%emt 0:00:20]} 27. Qxe5 {[%emt 0:00:03]} Qxe5 {[%emt 0:00:24]} 28. Bxe5 {[%emt 0:00:02]} g6 {[%emt 0:00:52]} 29. Bd6 {[%emt 0:01:57]} Rf7 {[%emt 0:01:07]} 30. h4 {[%emt 0:01:22]} h5 {[%emt 0:00:39]} 31. Bxh5 {[%emt 0:00:19]} gxh5 {[%emt 0:00:15]} 32. hxg5 {[%emt 0:00:03]} Rf5 {[%emt 0:00:33]} 33. Bf4 {[%emt 0:00:41]} Rc5 {[%emt 0:00:41]} 34. Rd1 {[%emt 0:00:36]} Bc6 {[%emt 0:00:09]} 35. Rd4 {[%emt 0:00:43]} Kf7 {[%emt 0:00:43]} 36. Kf2 {[%emt 0:00:34]} a6 {[%emt 0:00:38]} 37. Be3 {[%emt 0:00:49]} Rf5 {[%emt 0:00:47]} 38. f4 {[%emt 0:00:08]} Ke7 {[%emt 0:01:08]} 39. Bd2 {[%emt 0:02:09]} a5 {[%emt 0:00:37]} 40. Rd3 {[%emt 0:00:33]} b5 {[%emt 0:00:25]} 41. cxb5 {[%emt 0:00:32]} Rxb5 {[%emt 0:00:16]} 42. Bc3 {[%emt 0:00:01]} Be8 {[%emt 0:00:50]} 43. Bf6+ {[%emt 0:00:33]} Kf7 {[%emt 0:00:11]} 44. Rc3 {[%emt 0:01:07]} Rb7 {[%emt 0:00:30]} 45. Ke3 {[%emt 0:00:13]} Bd7 {[%emt 0:00:42]} 46. Ke4 {[%emt 0:00:17]} Kg6 {[%emt 0:00:25]} 47. Rc5 {[%emt 0:00:07]} a4 {[%emt 0:00:49]} 48. f5+ {[%emt 0:00:12]} Kf7 {[%emt 0:00:03]} 49. Bc3 {[%emt 0:00:20]} Rb6 {[%emt 0:00:29]} 50. g6+ {[%emt 0:00:26]} Kf8 {[%emt 0:00:05]} 51. f6 {[%emt 0:00:52]} Re6+ {[%emt 0:00:33]} 52. Kf4 {[%emt 0:00:05]} Be8 {[%emt 0:00:16]} 53. Kg5 {[%emt 0:00:18]} Re3 {[%emt 0:00:09]} 54. Be5 {[%emt 0:00:15]} h4 {[%emt 0:00:43]} 55. gxh4 {[%emt 0:00:44]} Rd3 {[%emt 0:00:15]} 56. Rc8 {[%emt 0:00:27]} Rd5 {[%emt 0:00:01]} 57. Kf5 {[%emt 0:00:12]} 1-0

[Event "2nd Summer Festival Belgrade GM 2019"]
[Site "Belgrade"]
[Date "2019.06.30"]
[Round "10.2"]
[White "Chen, Peng"]
[Black "Strikovic, Aleksa"]
[Result "1-0"]
[ECO "B42"]
[WhiteElo "2328"]
[BlackElo "2503"]
[Annotator "ChessBase"]
[PlyCount "37"]
[EventDate "2019.06.25"]
[EventType "tourn"]
[EventCountry "SRB"]
[SourceTitle "playchess.com"]
[Source "ChessBase"]
[SourceQuality "1"]
[TimeControl "5400+30"]

1. e4 {[%emt 0:00:00]} c5 {[%emt 0:06:23]} 2. Nf3 {[%emt 0:01:51]} e6 {[%emt 0:00:09]} 3. d4 {[%emt 0:00:28]} cxd4 {[%emt 0:00:06]} 4. Nxd4 {[%emt 0:00:08]} a6 {[%emt 0:00:08]} 5. Bd3 {[%emt 0:00:32]} Nf6 {[%emt 0:00:37]} 6. O-O {[%emt 0:00:51]} d6 {[%emt 0:11:29]} 7. Kh1 {[%emt 0:00:39]} Nbd7 {[%emt 0:02:00]} 8. f4 {[%emt 0:03:26]} Qc7 {[%emt 0:00:56]} 9. Nc3 {[%emt 0:00:20]} b6 {[%emt 0:01:03]} 10. Qf3 {[%emt 0:06:43]} Bb7 {[%emt 0:12:25]} 11. Bd2 {[%emt 0:00:56]} Be7 {[%emt 0:04:12]} 12. Rae1 {[%emt 0:00:19]} O-O {[%emt 0:02:40]} 13. Qh3 {[%emt 0:01:14]} Qc5 {[%emt 0:21:17]} 14. e5 {[%emt 0:22:57]} Qxd4 {[%emt 0:06:40]} 15. Be3 {[%emt 0:00:03]} Qb4 {[%emt 0:00:37]} 16. a3 {[%emt 0:00:15]} Qxb2 {[%emt 0:09:24]} 17. exf6 {[%emt 0:00:49]} Nxf6 {[%emt 0:00:10]} 18. Bd4 {[%emt 0:00:08]} g6 {[%emt 0:00:24]} 19. Ra1 {[%emt 0:00:33]} 1-0

[Event "2nd Summer Festival Belgrade GM 2019"]
[Site "Belgrade"]
[Date "2019.06.30"]
[Round "10.3"]
[White "Ernst, Sipke"]
[Black "Damljanovic, Branko"]
[Result "0-1"]
[ECO "E60"]
[WhiteElo "2541"]
[BlackElo "2468"]
[Annotator "ChessBase"]
[PlyCount "114"]
[EventDate "2019.06.25"]
[EventType "tourn"]
[EventCountry "SRB"]
[SourceTitle "playchess.com"]
[Source "ChessBase"]
[SourceQuality "1"]
[TimeControl "5400+30"]

1. Nf3 {[%emt 0:02:12]} Nf6 {[%emt 0:00:27]} 2. c4 {[%emt 0:00:05]} g6 {[%emt 0:00:40]} 3. b3 {[%emt 0:00:11]} Bg7 {[%emt 0:00:09]} 4. Bb2 {[%emt 0:00:04]} O-O {[%emt 0:00:50]} 5. g3 {[%emt 0:00:09]} d6 {[%emt 0:03:06]} 6. d4 {[%emt 0:00:04]} a5 {[%emt 0:04:08]} 7. Nc3 {[%emt 0:00:42]} Nc6 {[%emt 0:00:10]} 8. Bg2 {[%emt 0:06:08]} e5 {[%emt 0:00:54]} 9. d5 {[%emt 0:05:06]} Nb4 {[%emt 0:01:58]} 10. e4 {[%emt 0:04:16]} c6 {[%emt 0:07:40]} 11. dxc6 {[%emt 0:13:21]} bxc6 {[%emt 0:00:24]} 12. O-O {[%emt 0:00:11]} Qe7 {[%emt 0:07:08]} 13. Qd2 {[%emt 0:04:16]} Rd8 {[%emt 0:11:38]} 14. h3 {[%emt 0:09:20]} c5 {[%emt 0:05:01]} 15. Rae1 {[%emt 0:01:58]} Nc6 {[%emt 0:02:27]} 16. Nd5 {[%emt 0:03:48]} Qb7 {[%emt 0:01:41]} 17. Qg5 {[%emt 0:03:00]} Ne8 {[%emt 0:04:48]} 18. Qh4 {[%emt 0:10:12]} Be6 {[%emt 0:02:38]} 19. Bc1 {[%emt 0:02:03]} f6 {[%emt 0:02:05]} 20. g4 {[%emt 0:07:18]} a4 {[%emt 0:07:43]} 21. g5 {[%emt 0:03:57]} Bxd5 {[%emt 0:00:08]} 22. exd5 {[%emt 0:01:43]} Ne7 {[%emt 0:00:47]} 23. gxf6 {[%emt 0:02:43]} Nf5 {[%emt 0:00:24]} 24. f7+ {[%emt 0:02:16]} Qxf7 {[%emt 0:00:10]} 25. Qe4 {[%emt 0:01:17]} h6 {[%emt 0:01:42]} 26. Qd3 {[%emt 0:01:25]} Nf6 {[%emt 0:01:16]} 27. Nh2 {[%emt 0:03:58]} axb3 28. axb3 {[%emt 0:00:03]} Rab8 {[%emt 0:04:20]} 29. Bd2 {[%emt 0:00:58]} Rb7 {[%emt 0:11:25]} 30. Ng4 {[%emt 0:00:05]} h5 {[%emt 0:03:42]} 31. Nxf6+ {[%emt 0:00:27]} Qxf6 {[%emt 0:00:17]} 32. Be4 {[%emt 0:01:06]} Rf8 {[%emt 0:00:54]} 33. Kh1 {[%emt 0:03:49]} Bh6 {[%emt 0:08:36]} 34. Bxh6 {[%emt 0:01:32]} Nxh6 {[%emt 0:00:02]} 35. f4 {[%emt 0:00:45]} exf4 {[%emt 0:00:47]} 36. Bxg6 {[%emt 0:00:22]} Rg7 {[%emt 0:00:58]} 37. Re6 {[%emt 0:01:01]} Qh4 {[%emt 0:00:34]} 38. Rf3 {[%emt 0:03:57]} Ng4 {[%emt 0:00:55]} 39. Re2 {[%emt 0:02:52]} Qg5 {[%emt 0:04:13]} 40. hxg4 {[%emt 0:00:31]} hxg4 {[%emt 0:00:03]} 41. Rf1 {[%emt 0:00:32]} Rxg6 {[%emt 0:00:14]} 42. Kg1 {[%emt 0:00:21]} Rh6 {[%emt 0:00:43]} 43. Re6 {[%emt 0:00:09]} Qh5 {[%emt 0:01:43]} 44. Rxh6 {[%emt 0:00:16]} Qxh6 {[%emt 0:00:02]} 45. Qe4 {[%emt 0:00:11]} g3 {[%emt 0:01:03]} 46. Qe6+ {[%emt 0:00:47]} Qxe6 {[%emt 0:00:12]} 47. dxe6 {[%emt 0:00:01]} Rf6 {[%emt 0:00:08]} 48. e7 {[%emt 0:00:07]} Kf7 {[%emt 0:00:06]} 49. Re1 {[%emt 0:00:01]} Ke8 {[%emt 0:00:08]} 50. Kg2 {[%emt 0:00:03]} Rf7 {[%emt 0:00:07]} 51. Kf3 {[%emt 0:00:14]} Rxe7 {[%emt 0:02:24]} 52. Rg1 {[%emt 0:01:14]} Rf7 {[%emt 0:00:42]} 53. Rg2 {[%emt 0:01:30]} Kd7 {[%emt 0:00:12]} 54. Ra2 {[%emt 0:00:08]} Rf6 {[%emt 0:00:38]} 55. Ra7+ {[%emt 0:00:16]} Ke6 {[%emt 0:00:02]} 56. Rg7 {[%emt 0:00:07]} Kf5 {[%emt 0:00:09]} 57. Rg8 {[%emt 0:00:43]} Ke5 {[%emt 0:00:14]} 0-1

[Event "2nd Summer Festival Belgrade GM 2019"]
[Site "Belgrade"]
[Date "2019.06.30"]
[Round "10.4"]
[White "Liu, Zhaoqi"]
[Black "Damjanovic, Vuk"]
[Result "0-1"]
[ECO "A21"]
[WhiteElo "2386"]
[BlackElo "2283"]
[Annotator "ChessBase"]
[PlyCount "126"]
[EventDate "2019.06.25"]
[EventType "tourn"]
[EventCountry "SRB"]
[SourceTitle "playchess.com"]
[Source "ChessBase"]
[SourceQuality "1"]
[TimeControl "5400+30"]

1. c4 {[%emt 0:00:00]} e5 {[%emt 0:00:00]} 2. Nc3 {[%emt 0:00:00]} Bb4 {[%emt 0:00:29]} 3. Nd5 {[%emt 0:00:00]} a5 {[%emt 0:00:36]} 4. Nf3 {[%emt 0:00:00]} Nc6 {[%emt 0:01:03]} 5. a3 {[%emt 0:00:59]} Be7 {[%emt 0:00:30]} 6. d4 {[%emt 0:00:35]} d6 {[%emt 0:00:46]} 7. e3 {[%emt 0:00:14]} Nf6 {[%emt 0:00:43]} 8. Nxe7 {[%emt 0:01:19]} Qxe7 {[%emt 0:00:17]} 9. Be2 {[%emt 0:00:06]} O-O {[%emt 0:00:55]} 10. O-O {[%emt 0:02:10]} a4 {[%emt 0:05:36]} 11. Bd2 {[%emt 0:01:29]} Bg4 {[%emt 0:03:43]} 12. Bc3 {[%emt 0:12:05]} Rfe8 {[%emt 0:19:52]} 13. Re1 {[%emt 0:15:18]} h6 {[%emt 0:09:41]} 14. Rc1 {[%emt 0:06:30]} Ne4 {[%emt 0:19:09]} 15. d5 {[%emt 0:00:31]} Nb8 {[%emt 0:01:23]} 16. Nd2 {[%emt 0:00:07]} Bxe2 {[%emt 0:01:25]} 17. Qxe2 {[%emt 0:00:06]} Nxd2 {[%emt 0:04:29]} 18. Qxd2 {[%emt 0:00:35]} Nd7 {[%emt 0:00:51]} 19. e4 {[%emt 0:00:35]} Nc5 {[%emt 0:00:52]} 20. Rcd1 {[%emt 0:00:19]} Qg5 {[%emt 0:04:37]} 21. Qe2 {[%emt 0:00:41]} Rf8 {[%emt 0:01:13]} 22. Bb4 {[%emt 0:04:52]} Nb3 {[%emt 0:04:05]} 23. Bc3 {[%emt 0:00:06]} Nc5 {[%emt 0:00:21]} 24. Bb4 {[%emt 0:09:03]} Nb3 {[%emt 0:00:04]} 25. Bc3 {[%emt 0:00:09]} f5 {[%emt 0:01:10]} 26. exf5 {[%emt 0:00:15]} Qxf5 {[%emt 0:00:38]} 27. Rd3 {[%emt 0:00:57]} Rf7 {[%emt 0:03:10]} 28. Rg3 {[%emt 0:06:24]} Raf8 {[%emt 0:00:38]} 29. f3 {[%emt 0:00:09]} Kh8 {[%emt 0:02:14]} 30. h4 {[%emt 0:04:17]} b6 {[%emt 0:02:32]} 31. Rg4 {[%emt 0:00:19]} Nc5 {[%emt 0:00:27]} 32. Rd1 {[%emt 0:03:05]} Nb3 {[%emt 0:00:35]} 33. f4 {[%emt 0:01:45]} e4 {[%emt 0:05:05]} 34. Rf1 {[%emt 0:02:37]} Nc5 {[%emt 0:01:06]} 35. Rg3 {[%emt 0:00:15]} Nd3 {[%emt 0:00:34]} 36. Qe3 {[%emt 0:00:37]} Kh7 {[%emt 0:03:59]} 37. Qd4 {[%emt 0:03:42]} Rf6 {[%emt 0:00:32]} 38. Qe3 {[%emt 0:01:05]} Rg6 {[%emt 0:01:53]} 39. Rxg6 {[%emt 0:01:02]} Qxg6 {[%emt 0:00:08]} 40. g3 {[%emt 0:00:32]} Qf5 {[%emt 0:01:18]} 41. Kg2 {[%emt 0:01:31]} Kg8 {[%emt 0:00:45]} 42. h5 {[%emt 0:04:53]} Rf7 {[%emt 0:00:28]} 43. Qe2 {[%emt 0:01:21]} b5 {[%emt 0:00:53]} 44. cxb5 {[%emt 0:01:02]} Qxd5 {[%emt 0:00:02]} 45. Qe3 {[%emt 0:00:11]} Kh7 {[%emt 0:01:11]} 46. g4 {[%emt 0:01:13]} Re7 {[%emt 0:00:31]} 47. Kg3 {[%emt 0:00:46]} Qxb5 {[%emt 0:00:24]} 48. Rd1 {[%emt 0:00:44]} Qc4 {[%emt 0:00:36]} 49. g5 {[%emt 0:00:47]} hxg5 {[%emt 0:00:27]} 50. fxg5 {[%emt 0:00:01]} Nc5 {[%emt 0:00:32]} 51. g6+ {[%emt 0:00:26]} Kg8 {[%emt 0:00:03]} 52. h6 {[%emt 0:07:12]} Qe6 {[%emt 0:00:09]} 53. Rg1 {[%emt 0:07:00]} Qxg6+ {[%emt 0:00:16]} 54. Kh4 {[%emt 0:00:39]} Qf5 {[%emt 0:01:11]} 55. Rg5 {[%emt 0:01:38]} Qf3 {[%emt 0:00:49]} 56. Qg1 {[%emt 0:00:13]} Qf4+ {[%emt 0:00:19]} 57. Kh3 {[%emt 0:00:25]} Ne6 {[%emt 0:00:13]} 58. Rg6 {[%emt 0:01:40]} Qf3+ {[%emt 0:00:35]} 59. Kh4 {[%emt 0:00:05]} e3 {[%emt 0:00:41]} 60. Bxg7 {[%emt 0:01:36]} Qf2+ {[%emt 0:00:41]} 61. Qg3 {[%emt 0:01:33]} Nxg7 {[%emt 0:00:27]} 62. Rxg7+ {[%emt 0:00:40]} Rxg7 {[%emt 0:00:06]} 63. hxg7 {[%emt 0:00:06]} d5 {[%emt 0:00:06]} 0-1

[Event "2nd Summer Festival Belgrade GM 2019"]
[Site "Belgrade"]
[Date "2019.06.30"]
[Round "10.5"]
[White "Batsuren, Dambasuren"]
[Black "Salimova, Nurgyul"]
[Result "1/2-1/2"]
[ECO "E05"]
[WhiteElo "2439"]
[BlackElo "2416"]
[Annotator "NA"]
[PlyCount "74"]
[EventDate "2019.06.25"]
[EventType "tourn"]
[EventCountry "SRB"]
[SourceTitle "playchess.com"]
[Source "ChessBase"]
[SourceQuality "1"]
[TimeControl "5400+30"]

1. d4 {[%emt 0:00:00]} Nf6 {[%emt 0:00:00]} 2. Nf3 {[%emt 0:00:00]} d5 {[%emt 0:00:00]} 3. g3 {[%emt 0:00:00]} e6 {[%emt 0:00:00]} 4. Bg2 {[%emt 0:00:00]} Be7 {[%emt 0:00:00]} 5. O-O {[%emt 0:00:01]} O-O {[%emt 0:00:06]} 6. c4 {[%emt 0:00:03]} dxc4 {[%emt 0:00:08]} 7. Qc2 {[%emt 0:00:25]} b6 {[%emt 0:00:11]} 8. Qxc4 {[%emt 0:04:51]} Bb7 {[%emt 0:00:11]} 9. Bg5 {[%emt 0:06:00]} c5 {[%emt 0:10:53]} 10. Nc3 {[%emt 0:08:17]} Nbd7 {[%emt 0:03:23]} 11. Rfd1 {[%emt 0:08:06]} Rc8 {[%emt 0:11:50]} 12. Qa4 {[%emt 0:06:48]} Bc6 {[%emt 0:03:52]} 13. Qa6 {[%emt 0:01:50]} cxd4 {[%emt 0:14:36]} 14. Nxd4 {[%emt 0:05:31]} Bxg2 {[%emt 0:00:41]} 15. Kxg2 {[%emt 0:02:13]} Rc5 {[%emt 0:04:31]} 16. Bxf6 {[%emt 0:02:21]} Qa8+ {[%emt 0:03:17]} 17. Kg1 {[%emt 0:01:52]} Bxf6 {[%emt 0:03:55]} 18. Ndb5 {[%emt 0:08:35]} Nb8 {[%emt 0:03:54]} 19. Qa3 {[%emt 0:06:39]} a6 {[%emt 0:05:08]} 20. Rac1 {[%emt 0:09:28]} Nc6 {[%emt 0:04:03]} 21. Nd6 {[%emt 0:01:05]} Nd4 {[%emt 0:06:58]} 22. Rd2 {[%emt 0:02:29]} Be5 {[%emt 0:06:22]} 23. Rcd1 {[%emt 0:03:03]} Bxd6 {[%emt 0:06:13]} 24. Rxd4 {[%emt 0:00:06]} Rd5 {[%emt 0:02:32]} 25. Qb3 {[%emt 0:01:24]} Rxd4 26. Rxd4 {[%emt 0:00:04]} Bc5 {[%emt 0:00:14]} 27. Rd3 {[%emt 0:00:16]} b5 {[%emt 0:01:39]} 28. Qd1 {[%emt 0:01:51]} Be7 {[%emt 0:02:13]} 29. a4 {[%emt 0:01:58]} b4 {[%emt 0:00:51]} 30. Nb1 {[%emt 0:00:07]} Rc8 {[%emt 0:00:36]} 31. Nd2 {[%emt 0:00:45]} h5 {[%emt 0:00:28]} 32. h4 {[%emt 0:01:25]} Bf6 {[%emt 0:02:06]} 33. b3 {[%emt 0:00:13]} Rc3 {[%emt 0:00:14]} 34. Nb1 {[%emt 0:01:32]} Rc8 {[%emt 0:00:57]} 35. Nd2 {[%emt 0:00:06]} Rc3 {[%emt 0:00:04]} 36. Nb1 {[%emt 0:00:05]} Rc8 {[%emt 0:00:04]} 37. Nd2 {[%emt 0:00:04]} Rc3 {[%emt 0:00:05]} 1/2-1/2

[Event "2nd Summer Festival Belgrade GM 2019"]
[Site "Belgrade"]
[Date "2019.06.30"]
[Round "10.6"]
[White "Abramovic, Bosko"]
[Black "Lee, Jun Hyeok"]
[Result "0-1"]
[ECO "A86"]
[WhiteElo "2353"]
[BlackElo "2386"]
[Annotator "NA"]
[PlyCount "72"]
[EventDate "2019.06.25"]
[EventType "tourn"]
[EventCountry "SRB"]
[SourceTitle "playchess.com"]
[Source "ChessBase"]
[SourceQuality "1"]
[TimeControl "5400+30"]

1. g3 {[%emt 0:00:17]} g6 {[%emt 0:00:22]} 2. Bg2 {[%emt 0:00:12]} Bg7 {[%emt 0:00:20]} 3. c4 {[%emt 0:00:48]} f5 {[%emt 0:01:04]} 4. Nc3 {[%emt 0:01:21]} Nf6 {[%emt 0:03:02]} 5. d4 {[%emt 0:04:17]} O-O {[%emt 0:00:07]} 6. Nh3 {[%emt 0:00:16]} d6 {[%emt 0:01:51]} 7. d5 {[%emt 0:01:01]} Na6 {[%emt 0:02:31]} 8. O-O {[%emt 0:02:21]} Nc5 {[%emt 0:00:45]} 9. Nf4 {[%emt 0:00:08]} e5 {[%emt 0:02:37]} 10. dxe6 {[%emt 0:00:09]} c6 {[%emt 0:00:14]} 11. Qc2 {[%emt 0:01:57]} g5 {[%emt 0:05:35]} 12. Nd3 {[%emt 0:03:44]} Nxe6 {[%emt 0:00:21]} 13. e3 {[%emt 0:05:00]} h5 {[%emt 0:11:32]} 14. b3 {[%emt 0:01:00]} h4 {[%emt 0:00:38]} 15. Bb2 {[%emt 0:00:31]} hxg3 {[%emt 0:01:24]} 16. hxg3 {[%emt 0:00:06]} Ng4 {[%emt 0:07:22]} 17. Ne2 {[%emt 0:00:46]} Qe8 {[%emt 0:02:48]} 18. Bxg7 {[%emt 0:08:22]} Qh5 {[%emt 0:01:38]} 19. Rfd1 {[%emt 0:00:55]} Nxg7 {[%emt 0:00:33]} 20. Ne1 {[%emt 0:00:25]} f4 {[%emt 0:01:14]} 21. exf4 {[%emt 0:00:21]} Bf5 {[%emt 0:01:56]} 22. Qd2 {[%emt 0:02:49]} Be4 {[%emt 0:00:54]} 23. f3 {[%emt 0:01:27]} Qh2+ {[%emt 0:01:16]} 24. Kf1 {[%emt 0:00:05]} gxf4 {[%emt 0:15:20]} 25. gxf4 {[%emt 0:18:23]} Nh5 {[%emt 0:02:48]} 26. Qd4 {[%emt 0:05:02]} Rxf4 {[%emt 0:02:56]} 27. Qg1 {[%emt 0:03:53]} Qg3 {[%emt 0:12:34]} 28. Nxf4 {[%emt 0:00:59]} Nxf4 {[%emt 0:00:05]} 29. fxg4 {[%emt 0:02:05]} Bxg2+ {[%emt 0:03:27]} 30. Nxg2 {[%emt 0:00:18]} Nh3 {[%emt 0:00:35]} 31. Qe3 {[%emt 0:02:00]} Rf8+ {[%emt 0:00:03]} 32. Ke2 {[%emt 0:00:42]} Qxg2+ {[%emt 0:00:05]} 33. Kd3 {[%emt 0:00:17]} Rf3 {[%emt 0:00:11]} 34. Rf1 {[%emt 0:00:35]} Nf4+ {[%emt 0:01:45]} 35. Kd4 {[%emt 0:03:44]} c5+ {[%emt 0:00:03]} 36. Ke4 {[%emt 0:00:28]} Rxf1+ {[%emt 0:00:07]} 0-1

[Event "2nd Summer Festival Belgrade GM 2019"]
[Site "Belgrade"]
[Date "2019.07.01"]
[Round "11.1"]
[White "Lee, Jun Hyeok"]
[Black "Yu, Jennifer"]
[Result "1-0"]
[ECO "D94"]
[WhiteElo "2386"]
[BlackElo "2369"]
[Annotator "ChessBase"]
[PlyCount "65"]
[EventDate "2019.06.25"]
[EventType "tourn"]
[EventCountry "SRB"]
[SourceTitle "playchess.com"]
[Source "ChessBase"]
[SourceQuality "1"]
[TimeControl "5400+30"]

1. Nf3 {[%emt 0:00:36]} d5 {[%emt 0:00:00]} 2. e3 {[%emt 0:01:20]} Nf6 {[%emt 0:00:06]} 3. c4 {[%emt 0:00:08]} c6 {[%emt 0:00:15]} 4. Nc3 {[%emt 0:00:10]} g6 {[%emt 0:00:10]} 5. d4 {[%emt 0:00:08]} Bg7 {[%emt 0:00:07]} 6. Be2 {[%emt 0:00:05]} O-O {[%emt 0:00:08]} 7. O-O {[%emt 0:00:05]} b6 {[%emt 0:00:11]} 8. a4 {[%emt 0:00:51]} a5 {[%emt 0:00:38]} 9. cxd5 {[%emt 0:00:52]} cxd5 {[%emt 0:02:28]} 10. b3 {[%emt 0:00:11]} Nc6 {[%emt 0:03:33]} 11. Ba3 {[%emt 0:00:49]} Bb7 {[%emt 0:02:06]} 12. Rc1 {[%emt 0:07:10]} Rc8 {[%emt 0:02:05]} 13. Ne5 {[%emt 0:00:53]} Nxe5 {[%emt 0:19:22]} 14. dxe5 {[%emt 0:00:26]} Nd7 {[%emt 0:00:08]} 15. f4 {[%emt 0:00:51]} Nc5 {[%emt 0:00:14]} 16. Nb5 {[%emt 0:06:24]} Ba6 {[%emt 0:05:13]} 17. Nd4 {[%emt 0:03:14]} Bb7 {[%emt 0:08:22]} 18. b4 {[%emt 0:05:52]} axb4 {[%emt 0:19:38]} 19. Bxb4 {[%emt 0:00:06]} Rc7 {[%emt 0:01:16]} 20. a5 {[%emt 0:08:32]} Na6 {[%emt 0:00:13]} 21. Rxc7 {[%emt 1:01:47]} Qxc7 {[%emt 0:00:11]} 22. axb6 {[%emt 0:00:00]} Qxb6 {[%emt 0:00:05]} 23. Bxe7 {[%emt 0:00:00]} Re8 {[%emt 0:00:03]} 24. Bd6 {[%emt 0:00:00]} f6 {[%emt 0:01:20]} 25. Qb1 {[%emt 0:00:00]} Qxb1 {[%emt 0:02:03]} 26. Rxb1 {[%emt 0:00:00]} fxe5 {[%emt 0:00:06]} 27. fxe5 {[%emt 0:00:00]} Bc8 {[%emt 0:00:29]} 28. Rb6 {[%emt 0:00:00]} Bxe5 {[%emt 0:00:15]} 29. Bxa6 {[%emt 0:00:00]} Bxd6 {[%emt 0:01:05]} 30. Rxd6 {[%emt 0:00:00]} Bxa6 {[%emt 0:00:05]} 31. Rxa6 {[%emt 0:00:00]} Rxe3 {[%emt 0:00:35]} 32. Rd6 {[%emt 0:00:00]} Kf7 {[%emt 0:00:16]} 33. Nf3 {[%emt 0:00:00]} 1-0

[Event "2nd Summer Festival Belgrade GM 2019"]
[Site "Belgrade"]
[Date "2019.07.01"]
[Round "11.3"]
[White "Damjanovic, Vuk"]
[Black "Batsuren, Dambasuren"]
[Result "0-1"]
[ECO "E17"]
[WhiteElo "2283"]
[BlackElo "2439"]
[Annotator "ChessBase"]
[PlyCount "82"]
[EventDate "2019.06.25"]
[EventType "tourn"]
[EventCountry "SRB"]
[SourceTitle "playchess.com"]
[Source "ChessBase"]
[SourceQuality "1"]
[TimeControl "5400+30"]

1. Nf3 {[%emt 0:00:53]} Nf6 {[%emt 0:00:00]} 2. c4 {[%emt 0:00:28]} b6 {[%emt 0:00:18]} 3. g3 {[%emt 0:00:35]} Bb7 {[%emt 0:00:20]} 4. Bg2 {[%emt 0:00:14]} e6 {[%emt 0:00:08]} 5. O-O {[%emt 0:00:22]} Be7 {[%emt 0:00:05]} 6. d4 {[%emt 0:00:52]} O-O {[%emt 0:00:09]} 7. d5 {[%emt 0:01:05]} exd5 {[%emt 0:00:30]} 8. Nh4 {[%emt 0:00:18]} c6 {[%emt 0:00:36]} 9. cxd5 {[%emt 0:00:57]} Nxd5 {[%emt 0:00:06]} 10. Nf5 {[%emt 0:01:02]} Nc7 {[%emt 0:01:09]} 11. e4 {[%emt 0:01:08]} d5 {[%emt 0:01:37]} 12. Nc3 {[%emt 0:01:00]} Nba6 {[%emt 0:08:23]} 13. Bf4 {[%emt 0:11:20]} g6 {[%emt 0:18:53]} 14. Nxe7+ {[%emt 0:03:36]} Qxe7 {[%emt 0:00:07]} 15. exd5 {[%emt 0:00:12]} Nxd5 {[%emt 0:02:51]} 16. Nxd5 {[%emt 0:01:02]} cxd5 {[%emt 0:00:06]} 17. Re1 {[%emt 0:07:43]} Qf6 {[%emt 0:11:13]} 18. Be5 {[%emt 0:02:23]} Qd8 {[%emt 0:00:06]} 19. Bc3 {[%emt 0:03:20]} Nc7 {[%emt 0:02:39]} 20. Qd4 {[%emt 0:01:39]} f6 {[%emt 0:00:12]} 21. Qa4 {[%emt 1:00:21]} Rf7 {[%emt 0:04:09]} 22. Rad1 {[%emt 0:00:00]} Qd6 {[%emt 0:02:07]} 23. Bb4 {[%emt 0:00:00]} Qd7 {[%emt 0:03:34]} 24. Qb3 {[%emt 0:00:00]} Rd8 {[%emt 0:04:54]} 25. Re2 {[%emt 0:00:00]} Qb5 {[%emt 0:05:13]} 26. Re7 {[%emt 0:00:00]} a5 {[%emt 0:04:55]} 27. Rxf7 {[%emt 0:00:00]} Kxf7 {[%emt 0:00:05]} 28. Qc2 {[%emt 0:00:00]} Ne6 {[%emt 0:01:56]} 29. Bc3 {[%emt 0:00:00]} Bc6 {[%emt 0:03:16]} 30. Qc1 {[%emt 0:03:58]} d4 {[%emt 0:00:45]} 31. Qh6 {[%emt 0:00:25]} Bxg2 {[%emt 0:02:00]} 32. Qxh7+ {[%emt 0:00:20]} Ng7 {[%emt 0:00:05]} 33. Kxg2 {[%emt 0:00:13]} Rd5 {[%emt 0:00:14]} 34. Qh8 {[%emt 0:01:03]} dxc3 {[%emt 0:00:15]} 35. Re1 {[%emt 0:00:10]} cxb2 {[%emt 0:00:58]} 36. Re7+ {[%emt 0:00:04]} Kxe7 {[%emt 0:00:04]} 37. Qxg7+ {[%emt 0:00:07]} Ke6 {[%emt 0:00:21]} 38. Qg8+ {[%emt 0:00:03]} Kd7 {[%emt 0:00:11]} 39. Qf7+ {[%emt 0:00:05]} Kc8 {[%emt 0:00:10]} 40. Qg8+ {[%emt 0:00:15]} Kb7 {[%emt 0:00:06]} 41. Qf7+ {[%emt 0:00:12]} Rd7 {[%emt 0:00:07]} 0-1